fUST/lending_fUST_20240213
["ID","MTS","AMOUNT","RATE_DAILY","PERIOD"]
[313889922,1707771048071,-3435.787994,0.00028,20]
[313890258,1707772232222,-154.92253873,0.00016165,3]
[313890260,1707772232234,-1664.92863773,0.00016165,2]
[313890262,1707772232250,-11.04194652,0.00016165,2]
[313890264,1707772232261,-247.4295258,0.00016166,2]
[313890267,1707772232272,-1733.97919696,0.00016166,2]
[313890269,1707772232284,-199.91116455,0.00016167,2]
[313890271,1707772232295,-524.04456345,0.00016167,2]
[313890273,1707772232305,-262.0748117,0.00016168,2]
[313890275,1707772232317,-702.51433028,0.00016169,2]
[313890277,1707772232330,-694.32751707,0.00016169,2]
[313890279,1707772232341,-83993.39666499,0.00016276,2]
[313890281,1707772232352,-1993.92368867,0.0001631,2]
[313890283,1707772232363,-200.0,0.00017089,2]
[313890285,1707772232373,-280.0,0.00018798,2]
[313890287,1707772232382,-391.0,0.00020677,2]
[313890289,1707772232395,-181.257943,0.00021134,2]
[313890292,1707772232405,-326.73535811,0.00022,2]
[313890294,1707772232416,-427.63664462,0.00022,2]
[313890296,1707772232427,-4779.30136082,0.00022673,2]
[313890298,1707772232437,-4064.54027655,0.00022738,2]
[313890300,1707772232447,-276.52863547,0.00022743,2]
[313890302,1707772232457,-200.0,0.00022745,7]
[313890304,1707772232467,-348.0,0.00022745,7]
[313890306,1707772232478,-7838.51984632,0.00022755,2]
[313890308,1707772232488,-300.0,0.000229,10]
[313890309,1707772232498,-6357.92,0.0002299,3]
[313890311,1707772232509,-5298.26,0.0002299,3]
[313890313,1707772232519,-9976.71224854,0.00023,2]
[313890316,1707772232530,-1264.21341125,0.00023,2]
[313890318,1707772232541,-1014.31814785,0.00023095,3]
[313890320,1707772232551,-300.0,0.000244,11]
[313890322,1707772232562,-3334.11,0.0002446,3]
[313890324,1707772232573,-500.55022621,0.0002447,5]
[313890326,1707772232582,-638.53487903,0.00024644,2]
[313890328,1707772232591,-1631.79,0.00024998,2]
[313890329,1707772232600,-500.0,0.00024998,2]
[313890331,1707772232610,-1188.95,0.00024998,2]
[313890333,1707772232619,-500.0,0.00024998,2]
[313890336,1707772232630,-411.54731639,0.00024998,2]
[313890338,1707772232642,-801.39,0.00024998,2]
[313890340,1707772232652,-500.0,0.00024999,2]
[313890341,1707772232663,-500.0,0.00024999,2]
[313890343,1707772232673,-500.0,0.00024999,2]
[313890344,1707772232683,-586.87,0.00024999,2]
[313890346,1707772232694,-500.0,0.00024999,2]
[313890348,1707772232705,-500.0,0.00024999,2]
[313890350,1707772232716,-500.0,0.00024999,2]
[313890353,1707772232727,-933.2,0.00024999,2]
[313890354,1707772232737,-743.23,0.00024999,2]
[313890356,1707772232746,-328.32735851,0.00024999,2]
[313890358,1707772232757,-500.0,0.00024999,2]
[313890360,1707772232767,-335.81448194,0.00025,2]
[313890361,1707772232777,-7412.2245313,0.00025,2]
[313890363,1707772232788,-200.0,0.0002502,7]
[313890365,1707772232798,-200.0,0.0002502,7]
[313890367,1707772232808,-368.0,0.0002502,7]
[313890368,1707772232819,-171.07376993,0.00025172,2]
[313890369,1707772232829,-154.92253873,0.000252,2]
[313890371,1707772232840,-12700.58945955,0.00025272,2]
[313890373,1707772232851,-1631.79,0.00025272,2]
[313890374,1707772232861,-500.0,0.00025272,2]
[313890375,1707772232871,-1188.95,0.00025272,2]
[313890376,1707772232882,-500.0,0.00025272,2]
[313890377,1707772232892,-801.39,0.00025272,2]
[313890378,1707772232903,-500.0,0.00025273,2]
[313890379,1707772232913,-500.0,0.00025273,2]
[313890380,1707772232924,-586.87,0.00025273,2]
[313890381,1707772232935,-500.0,0.00025273,2]
[313890382,1707772232945,-500.0,0.00025273,2]
[313890383,1707772232955,-500.0,0.00025273,2]
[313890384,1707772232965,-933.2,0.00025273,2]
[313890385,1707772232975,-743.23,0.00025273,2]
[313890386,1707772232984,-314.02412757,0.00025273,2]
[313890387,1707772232993,-156.0183118,0.00025545,2]
[313890388,1707772233003,-1631.79,0.00025546,2]
[313890389,1707772233012,-500.0,0.00025546,2]
[313890390,1707772233021,-495.11220152,0.00025546,2]
[313890391,1707772233035,-693.83779848,0.00025546,2]
[313890392,1707772233046,-500.0,0.00025546,2]
[313890393,1707772233055,-801.39,0.00025546,2]
[313890394,1707772233066,-500.0,0.00025547,2]
[313890395,1707772233077,-500.0,0.00025547,2]
[313890396,1707772233086,-586.87,0.00025547,2]
[313890397,1707772233096,-500.0,0.00025547,2]
[313890398,1707772233106,-500.0,0.00025547,2]
[313890399,1707772233116,-500.0,0.00025547,2]
[313890400,1707772233127,-933.2,0.00025547,2]
[313890401,1707772233136,-743.23,0.00025547,2]
[313890402,1707772233146,-463.68600902,0.0002572,2]
[313890403,1707772233157,-155.02015262,0.00025819,2]
[313890404,1707772233167,-904.35028779,0.0002582,2]
[313890405,1707772233179,-727.43971221,0.0002582,2]
[313890406,1707772233189,-198.16474853,0.0002582,2]
[313890433,1707772238347,-163.20812248,0.00016164,2]
[313890435,1707772238360,-301.83525147,0.0002582,2]
[313890437,1707772238372,-32.36749931,0.0002582,2]
[313890440,1707772238387,-1156.58250069,0.0002582,2]
[313890442,1707772238398,-500.0,0.0002582,2]
[313890445,1707772238409,-801.39,0.0002582,2]
[313890448,1707772238420,-500.0,0.00025821,2]
[313890452,1707772238430,-500.0,0.00025821,2]
[313890454,1707772238441,-586.87,0.00025821,2]
[313890456,1707772238452,-500.0,0.00025821,2]
[313890458,1707772238464,-500.0,0.00025821,2]
[313890460,1707772238475,-500.0,0.00025821,2]
[313890463,1707772238486,-933.2,0.00025821,2]
[313890465,1707772238497,-743.23,0.00025821,2]
[313890467,1707772238508,-213.74873754,0.000259,2]
[313890469,1707772238518,-300.0,0.000259,12]
[313890471,1707772238529,-497.18931503,0.00026,2]
[313890474,1707772238543,-381.01276951,0.00026,2]
[313890483,1707772238709,-280.68844006,0.00026,2]
[313890485,1707772238720,-154.92253873,0.00026,7]
[313890487,1707772238730,-155.28046037,0.00026094,2]
[313890489,1707772238739,-1631.79,0.00026094,2]
[313890491,1707772238748,-500.0,0.00026094,2]
[313890493,1707772238757,-1188.95,0.00026094,2]
[313890495,1707772238766,-500.0,0.00026094,2]
[313890497,1707772238775,-801.39,0.00026094,2]
[313890499,1707772238784,-500.0,0.00026095,2]
[313890500,1707772238793,-500.0,0.00026095,2]
[313890501,1707772238802,-586.87,0.00026095,2]
[313890502,1707772238811,-500.0,0.00026095,2]
[313890503,1707772238821,-154.69974377,0.00026095,2]
[313890504,1707772238830,-423.83164681,0.00026095,2]
[313890505,1707772238840,-933.2,0.00026095,2]
[313890506,1707772238849,-743.23,0.00026095,2]
[313890507,1707772238858,-5000.0,0.00026246,2]
[313890508,1707772238867,-153.34627261,0.00026307,2]
[313890509,1707772238876,-2364.07679221,0.00026367,2]
[313890510,1707772238885,-1009.25364165,0.00026368,2]
[313890511,1707772238895,-1631.79,0.00026368,2]
[313890512,1707772238904,-500.0,0.00026368,2]
[313890513,1707772238913,-1188.95,0.00026368,2]
[313890514,1707772238922,-500.0,0.00026368,2]
[313890515,1707772238931,-801.39,0.00026368,2]
[313890516,1707772238941,-500.0,0.00026369,2]
[313890517,1707772238950,-500.0,0.00026369,2]
[313890518,1707772238959,-586.87,0.00026369,2]
[313890519,1707772238971,-500.0,0.00026369,2]
[313890520,1707772238981,-933.2,0.00026369,2]
[313890521,1707772238990,-743.23,0.00026369,2]
[313890522,1707772238999,-1859.09579688,0.00026574,2]
[313890523,1707772239009,-537.55731333,0.00026598,2]
[313890524,1707772239018,-8683.55680084,0.000266,4]
[313890525,1707772239026,-1631.79,0.00026642,2]
[313890526,1707772239035,-500.0,0.00026642,2]
[313890527,1707772239044,-1188.95,0.00026642,2]
[313890528,1707772239054,-500.0,0.00026642,2]
[313890529,1707772239063,-801.39,0.00026642,2]
[313890530,1707772239072,-500.0,0.00026643,2]
[313890531,1707772239081,-233.46157405,0.00026643,2]
[313890532,1707772239090,-586.87,0.00026643,2]
[313890533,1707772239099,-500.0,0.00026643,2]
[313890534,1707772239108,-933.2,0.00026643,2]
[313890535,1707772239117,-743.23,0.00026643,2]
[313890536,1707772239126,-161.47231463,0.00026771,2]
[313890537,1707772239135,-54545.31132872,0.000268,2]
[313890538,1707772239144,-153.34627261,0.00026821,2]
[313890539,1707772239153,-159.76368679,0.00026851,2]
[313890540,1707772239163,-1631.79,0.00026916,2]
[313890541,1707772239172,-500.0,0.00026916,2]
[313890542,1707772239181,-1188.95,0.00026916,2]
[313890543,1707772239190,-500.0,0.00026916,2]
[313890544,1707772239199,-801.39,0.00026916,2]
[313890545,1707772239208,-500.0,0.00026917,2]
[313890546,1707772239218,-586.87,0.00026917,2]
[313890547,1707772239226,-500.0,0.00026917,2]
[313890548,1707772239236,-933.2,0.00026917,2]
[313890549,1707772239245,-743.23,0.00026917,2]
[313890550,1707772239254,-3062.68810289,0.00027,2]
[313890551,1707772239263,-2045.39289283,0.00027,2]
[313890552,1707772239274,-1000.0,0.00027,27]
[313890553,1707772239283,-1631.79,0.0002719,2]
[313890554,1707772239293,-500.0,0.0002719,2]
[313890555,1707772239305,-1188.95,0.0002719,2]
[313890556,1707772239314,-500.0,0.0002719,2]
[313890557,1707772239323,-801.39,0.0002719,2]
[313890558,1707772239333,-500.0,0.00027191,2]
[313890559,1707772239342,-586.87,0.00027191,2]
[313890560,1707772239351,-500.0,0.00027191,2]
[313890561,1707772239360,-933.2,0.00027191,2]
[313890562,1707772239370,-743.23,0.00027191,2]
[313890563,1707772239380,-500.0,0.00027397,2]
[313890564,1707772239390,-155.0,0.00027397,2]
[313890565,1707772239399,-150.1,0.00027397,2]
[313890566,1707772239409,-300.0,0.000274,13]
[313890567,1707772239418,-207.61685523,0.000274,2]
[313890568,1707772239428,-662.89257821,0.0002742,2]
[313890569,1707772239437,-1631.79,0.00027464,2]
[313890570,1707772239447,-500.0,0.00027464,2]
[313890571,1707772239456,-1188.95,0.00027464,2]
[313890572,1707772239468,-500.0,0.00027464,2]
[313890573,1707772239478,-801.39,0.00027464,2]
[313890574,1707772239487,-500.0,0.00027465,2]
[313890575,1707772239496,-586.87,0.00027465,2]
[313890576,1707772239506,-500.0,0.00027465,2]
[313890577,1707772239515,-933.2,0.00027465,2]
[313890578,1707772239524,-743.23,0.00027465,2]
[313890579,1707772239534,-37770.6372244,0.000275,2]
[313890585,1707772241457,-4534.60011398,0.000275,2]
[313890586,1707772241656,-583.2877723,0.000275,2]
[313890587,1707772241666,-1048.35374076,0.000275,2]
[313890588,1707772241680,-951.64625924,0.000275,2]
[313890589,1707772241691,-181.87360464,0.0002751,2]
[313890590,1707772241705,-1818.12639536,0.0002751,2]
[313890591,1707772241716,-2000.0,0.0002752,2]
[313890592,1707772241734,-200.0,0.00027522,15]
[313890593,1707772241745,-200.0,0.00027522,15]
[313890594,1707772241756,-200.0,0.00027522,15]
[313890595,1707772241769,-200.0,0.00027522,15]
[313890596,1707772241779,-275.0,0.00027522,15]
[313890597,1707772241790,-2000.0,0.0002753,2]
[313890598,1707772241801,-500.0,0.00027534,2]
[313890599,1707772241811,-1486.561112,0.0002754,2]
[313890626,1707772243321,-371.3167664,0.0002754,2]
[313890631,1707772243376,-154.92253873,0.00027499,4]
[313890633,1707772243387,-142.1221216,0.0002754,2]
[313890634,1707772243396,-2000.0,0.0002755,2]
[313890635,1707772243406,-2000.0,0.0002756,2]
[313890636,1707772243415,-2000.0,0.0002757,2]
[313890637,1707772243425,-2000.0,0.0002758,2]
[313890638,1707772243434,-2000.0,0.0002759,2]
[313890639,1707772243443,-2000.0,0.000276,2]
[313890640,1707772243452,-2820.712054,0.0002761,2]
[313890641,1707772243462,-500.0,0.00027671,2]
[313890643,1707772243471,-709.45399173,0.00027718,2]
[313890708,1707772246367,-355.47874135,0.00022,2]
[313890710,1707772246379,-72.15790327,0.00022,2]
[313890712,1707772246389,-1675.97058425,0.00026798,2]
[313890714,1707772246398,-247.4295258,0.00027499,2]
[313890716,1707772246407,-9976.71224854,0.00027717,2]
[313890718,1707772246417,-15465.48077377,0.00027718,2]
[313890720,1707772246426,-1631.79,0.00027738,2]
[313890722,1707772246436,-500.0,0.00027738,2]
[313890724,1707772246445,-1188.95,0.00027738,2]
[313890726,1707772246454,-500.0,0.00027738,2]
[313890728,1707772246463,-801.39,0.00027738,2]
[313890730,1707772246473,-500.0,0.00027739,2]
[313890732,1707772246481,-586.87,0.00027739,2]
[313890734,1707772246490,-500.0,0.00027739,2]
[313890736,1707772246499,-933.2,0.00027739,2]
[313890738,1707772246509,-743.23,0.00027739,2]
[313890740,1707772246518,-500.0,0.00027808,2]
[313890742,1707772246527,-16257.58066682,0.00027855,2]
[313890744,1707772246536,-1760.75845457,0.00027897,2]
[313891055,1707773432436,-1638.3538228,0.00018906,2]
[313891056,1707773432446,-5000.0,0.00019489,2]
[313891057,1707773432455,-873.1806744,0.0001949,2]
[313891058,1707773432464,-262.0748117,0.0001949,2]
[313891060,1707773432474,-199.91116455,0.00019491,2]
[313891062,1707773432483,-163.20812248,0.00019491,2]
[313891063,1707773432492,-1733.97919696,0.00019491,2]
[313891065,1707773432502,-154.95351395,0.00019492,3]
[313891067,1707773432511,-1435.05014516,0.00019492,2]
[313891068,1707773432520,-1715.8749224,0.000195,2]
[313891069,1707773432530,-742.04082584,0.0002,2]
[313891071,1707773432539,-186.06886583,0.00020128,2]
[313891073,1707773432548,-1116.34705573,0.00020128,2]
[313891075,1707773432561,-568.64473359,0.00020128,2]
[313891076,1707773432570,-166.6666664,0.0002023,2]
[313891077,1707773432579,-404.18860001,0.00020503,2]
[313891079,1707773432592,-24495.81139999,0.00020503,2]
[313891080,1707773432601,-827.343919,0.00020579,2]
[313891082,1707773432609,-161.8881942,0.00020826,2]
[313891083,1707773432619,-18280.8498748,0.00021295,2]
[313891085,1707773432628,-200.0,0.00021441,7]
[313891086,1707773432640,-247.38920084,0.00022,4]
[313891087,1707773432650,-427.63664462,0.00022,2]
[313891088,1707773432660,-326.73535811,0.00022,2]
[313891089,1707773432670,-8895.02,0.00022434,3]
[313891090,1707773432679,-7412.52,0.00022434,3]
[313891091,1707773432690,-29499.73649728,0.00022444,2]
[313891174,1707773441669,-900.95,0.00022444,2]
[313891175,1707773441720,-2893.59280817,0.00022444,2]
[313891176,1707773441741,-4339.8220796,0.00022444,2]
[313891394,1707773445210,-326.73535811,0.00022443,2]
[313891396,1707773445220,-17480.34205984,0.00022444,2]
[313891402,1707773445271,-2416.82284381,0.00022444,2]
[313891405,1707773445281,-3331.65058421,0.0002255,2]
[313891408,1707773445291,-1835.18048227,0.00022778,3]
[313891410,1707773445302,-324.25284351,0.00022778,2]
[313891412,1707773445312,-6304.53229004,0.00022778,2]
[313891414,1707773445322,-1202.57082301,0.00022778,2]
[313891416,1707773445331,-681.3383372,0.00022778,2]
[313891418,1707773445340,-640.61124371,0.00022778,2]
[313891421,1707773445350,-3616.24903514,0.00022779,2]
[313891424,1707773445359,-500.0,0.00022779,2]
[313891427,1707773445368,-210.50654237,0.00022779,2]
[313891430,1707773445378,-500.0,0.00022779,2]
[313891433,1707773445387,-364.53138978,0.00022779,2]
[313891436,1707773445396,-27665.75933324,0.0002278,2]
[313891439,1707773445406,-9751.34932731,0.0002278,2]
[313891442,1707773445414,-50000.0,0.0002278,2]
[313891445,1707773445424,-1264.21341125,0.00023,2]
[313891448,1707773445433,-9976.71224854,0.00023,2]
[313891451,1707773445442,-260.44112697,0.00023073,2]
[313891452,1707773445451,-651.85853467,0.00023073,2]
[313891454,1707773445459,-5556.32046123,0.00023073,2]
[313891456,1707773445469,-38791.30498575,0.00023075,2]
[313891458,1707773445478,-649.01292604,0.00023095,3]
[313891460,1707773445486,-371.81169386,0.00023095,3]
[313891462,1707773445495,-280.0,0.00023585,7]
[313891464,1707773445504,-763.88031577,0.0002385,5]
[313891466,1707773445513,-3918.12632401,0.00024,2]
[313891468,1707773445522,-185.721238,0.00024198,2]
[313891470,1707773445531,-245.264187,0.00024198,2]
[313891472,1707773445540,-300.0,0.000243,11]
[313891473,1707773445548,-500.55022621,0.0002447,5]
[313891475,1707773445558,-849.50694692,0.0002464,2]
[313891478,1707773445567,-500.0,0.00024657,2]
[313891479,1707773445576,-500.0,0.00024657,2]
[313891480,1707773445585,-2812.37,0.00024657,2]
[313891481,1707773445594,-500.0,0.00024657,2]
[313891482,1707773445605,-3357.62,0.00024657,2]
[313891483,1707773445614,-500.0,0.00024657,2]
[313891484,1707773445623,-500.0,0.00024657,2]
[313891485,1707773445633,-500.0,0.00024657,2]
[313891486,1707773445642,-500.0,0.00024657,2]
[313891487,1707773445655,-500.0,0.00024657,2]
[313891488,1707773445664,-500.0,0.00024657,2]
[313891489,1707773445673,-500.0,0.00024657,2]
[313891490,1707773445682,-500.0,0.00024657,2]
[313891491,1707773445692,-636.17,0.00024657,2]
[313891492,1707773445701,-500.0,0.00024657,2]
[313891493,1707773445711,-1952.94,0.00024657,2]
[313891494,1707773445720,-500.0,0.00024931,2]
[313891495,1707773445730,-500.0,0.00024931,2]
[313891496,1707773445739,-2812.37,0.00024931,2]
[313891497,1707773445748,-3357.62,0.00024931,2]
[313891498,1707773445757,-500.0,0.00024931,2]
[313891499,1707773445766,-500.0,0.00024931,2]
[313891500,1707773445775,-500.0,0.00024931,2]
[313891501,1707773445784,-500.0,0.00024931,2]
[313891502,1707773445794,-500.0,0.00024931,2]
[313891503,1707773445803,-500.0,0.00024931,2]
[313891504,1707773445813,-500.0,0.00024931,2]
[313891505,1707773445824,-636.17,0.00024931,2]
[313891506,1707773445833,-1952.94,0.00024931,2]
[313891507,1707773445842,-7412.2245313,0.00025,2]
[313891508,1707773445852,-335.81448194,0.00025,2]
[313891509,1707773445861,-1280.95,0.00025077,2]
[313891510,1707773445870,-500.0,0.00025077,2]
[313891511,1707773445879,-500.0,0.00025077,2]
[313891513,1707773445889,-500.0,0.00025077,2]
[313891515,1707773445898,-500.0,0.00025077,2]
[313891517,1707773445907,-500.0,0.00025077,2]
[313891519,1707773445916,-1011.45,0.00025077,2]
[313891520,1707773445926,-500.0,0.00025077,2]
[313891521,1707773445935,-500.0,0.00025077,2]
[313891523,1707773445944,-500.0,0.00025077,2]
[313891525,1707773445953,-500.0,0.00025077,2]
[313891526,1707773445962,-500.0,0.00025077,2]
[313891527,1707773445971,-500.0,0.00025077,2]
[313891528,1707773445980,-2964.36,0.00025077,2]
[313891529,1707773445989,-500.0,0.00025077,2]
[313891530,1707773445998,-500.0,0.00025077,2]
[313891531,1707773446007,-500.0,0.00025077,2]
[313891532,1707773446016,-154.92253873,0.00025107,2]
[313891533,1707773446026,-500.0,0.00025205,2]
[313891534,1707773446034,-573.32,0.00025205,2]
[313891535,1707773446043,-2812.37,0.00025205,2]
[313891536,1707773446053,-3357.62,0.00025205,2]
[313891537,1707773446062,-500.0,0.00025205,2]
[313891538,1707773446071,-500.0,0.00025205,2]
[313891539,1707773446080,-500.0,0.00025205,2]
[313891540,1707773446090,-500.0,0.00025205,2]
[313891542,1707773446100,-500.0,0.00025205,2]
[313891543,1707773446109,-500.0,0.00025205,2]
[313891544,1707773446118,-500.0,0.00025205,2]
[313891545,1707773446127,-636.17,0.00025205,2]
[313891546,1707773446136,-1952.94,0.00025205,2]
[313891547,1707773446144,-1280.95,0.00025351,2]
[313891548,1707773446153,-515.49,0.00025351,2]
[313891549,1707773446162,-500.0,0.00025351,2]
[313891550,1707773446171,-500.0,0.00025351,2]
[313891551,1707773446180,-500.0,0.00025351,2]
[313891552,1707773446190,-500.0,0.00025351,2]
[313891553,1707773446199,-1011.45,0.00025351,2]
[313891554,1707773446210,-500.0,0.00025351,2]
[313891555,1707773446220,-500.0,0.00025351,2]
[313891556,1707773446229,-500.0,0.00025351,2]
[313891557,1707773446238,-500.0,0.00025351,2]
[313891558,1707773446247,-500.0,0.00025351,2]
[313891559,1707773446256,-500.0,0.00025351,2]
[313891560,1707773446265,-2964.36,0.00025351,2]
[313891561,1707773446275,-500.0,0.00025351,2]
[313891562,1707773446284,-500.0,0.00025351,2]
[313891563,1707773446293,-500.0,0.00025351,2]
[313891564,1707773446303,-185.721238,0.00025408,2]
[313891565,1707773446311,-500.0,0.00025479,2]
[313891566,1707773446321,-2812.37,0.00025479,2]
[313891567,1707773446330,-3357.62,0.00025479,2]
[313891568,1707773446339,-500.0,0.00025479,2]
[313891569,1707773446348,-500.0,0.00025479,2]
[313891570,1707773446357,-500.0,0.00025479,2]
[313891571,1707773446366,-500.0,0.00025479,2]
[313891572,1707773446375,-500.0,0.00025479,2]
[313891573,1707773446385,-500.0,0.00025479,2]
[313891574,1707773446394,-500.0,0.00025479,2]
[313891575,1707773446404,-636.17,0.00025479,2]
[313891576,1707773446413,-1952.94,0.00025479,2]
[313891577,1707773446422,-249.37352714,0.00025617,2]
[313891578,1707773446431,-1280.95,0.00025625,2]
[313891579,1707773446441,-500.0,0.00025625,2]
[313891580,1707773446451,-500.0,0.00025625,2]
[313891581,1707773446460,-500.0,0.00025625,2]
[313891582,1707773446469,-500.0,0.00025625,2]
[313891583,1707773446478,-1011.45,0.00025625,2]
[313891584,1707773446487,-374.4694042,0.00025625,2]
[313891585,1707773446496,-500.0,0.00025625,2]
[313891586,1707773446505,-500.0,0.00025625,2]
[313891587,1707773446514,-500.0,0.00025625,2]
[313891588,1707773446524,-500.0,0.00025625,2]
[313891589,1707773446533,-2964.36,0.00025625,2]
[313891590,1707773446543,-500.0,0.00025625,2]
[313891591,1707773446552,-500.0,0.00025625,2]
[313891592,1707773446561,-500.0,0.00025625,2]
[313891593,1707773446570,-500.0,0.00025753,2]
[313891594,1707773446579,-2812.37,0.00025753,2]
[313891595,1707773446589,-3357.62,0.00025753,2]
[313891596,1707773446598,-500.0,0.00025753,2]
[313891597,1707773446608,-500.0,0.00025753,2]
[313891598,1707773446617,-500.0,0.00025753,2]
[313891599,1707773446627,-500.0,0.00025753,2]
[313891600,1707773446637,-500.0,0.00025753,2]
[313891601,1707773446650,-500.0,0.00025753,2]
[313891602,1707773446659,-500.0,0.00025753,2]
[313891603,1707773446668,-636.17,0.00025753,2]
[313891604,1707773446678,-1952.94,0.00025753,2]
[313891605,1707773446687,-300.0,0.000258,12]
[313891606,1707773446696,-631.47534735,0.00025872,2]
[313891607,1707773446705,-1280.95,0.00025899,2]
[313891608,1707773446715,-500.0,0.00025899,2]
[313891609,1707773446724,-500.0,0.00025899,2]
[313891610,1707773446733,-500.0,0.00025899,2]
[313891611,1707773446743,-500.0,0.00025899,2]
[313891612,1707773446752,-1011.45,0.00025899,2]
[313891613,1707773446762,-500.0,0.00025899,2]
[313891614,1707773446771,-500.0,0.00025899,2]
[313891615,1707773446781,-182.81,0.00025899,2]
[313891616,1707773446790,-500.0,0.00025899,2]
[313891617,1707773446799,-2964.36,0.00025899,2]
[313891618,1707773446808,-500.0,0.00025899,2]
[313891619,1707773446817,-500.0,0.00025899,2]
[313891620,1707773446826,-500.0,0.00025899,2]
[313891621,1707773446835,-391.0,0.00025943,7]
[313891622,1707773446845,-280.68844006,0.00026,2]
[313891623,1707773446855,-500.0,0.00026027,2]
[313891624,1707773446865,-2812.37,0.00026027,2]
[313891625,1707773446874,-3357.62,0.00026027,2]
[313891626,1707773446883,-500.0,0.00026027,2]
[313891627,1707773446892,-500.0,0.00026027,2]
[313891629,1707773446902,-500.0,0.00026027,2]
[313891631,1707773446911,-500.0,0.00026027,2]
[313891632,1707773446920,-500.0,0.00026027,2]
[313891634,1707773446929,-500.0,0.00026027,2]
[313891637,1707773446939,-500.0,0.00026027,2]
[313891638,1707773446948,-636.17,0.00026027,2]
[313891640,1707773446958,-1952.94,0.00026027,2]
[313891642,1707773446967,-1280.95,0.00026173,2]
[313891644,1707773446976,-500.0,0.00026173,2]
[313891646,1707773446985,-500.0,0.00026173,2]
[313891648,1707773446995,-500.0,0.00026173,2]
[313891650,1707773447004,-500.0,0.00026173,2]
[313891652,1707773447013,-1011.45,0.00026173,2]
[313891654,1707773447022,-500.0,0.00026173,2]
[313891657,1707773447032,-500.0,0.00026173,2]
[313891659,1707773447041,-500.0,0.00026173,2]
[313891661,1707773447050,-2964.36,0.00026173,2]
[313891662,1707773447059,-500.0,0.00026173,2]
[313891664,1707773447068,-500.0,0.00026173,2]
[313891666,1707773447078,-500.0,0.00026173,2]
[313891669,1707773447087,-153.34627261,0.00026176,2]
[313891670,1707773447096,-2000.0,0.00026204,2]
[313891673,1707773447106,-5000.0,0.0002626,2]
[313891674,1707773447115,-5000.0,0.0002626,2]
[313891676,1707773447124,-500.0,0.00026301,2]
[313891678,1707773447133,-2812.37,0.00026301,2]
[313891679,1707773447142,-3357.62,0.00026301,2]
[313891681,1707773447151,-500.0,0.00026301,2]
[313891682,1707773447160,-500.0,0.00026301,2]
[313891684,1707773447169,-500.0,0.00026301,2]
[313891686,1707773447178,-500.0,0.00026301,2]
[313891687,1707773447187,-500.0,0.00026301,2]
[313891688,1707773447196,-500.0,0.00026301,2]
[313891690,1707773447206,-500.0,0.00026301,2]
[313891691,1707773447217,-636.17,0.00026301,2]
[313891692,1707773447228,-1952.94,0.00026301,2]
[313891693,1707773447239,-1000.0,0.00026365,3]
[313891694,1707773447249,-1280.95,0.00026447,2]
[313891695,1707773447258,-500.0,0.00026447,2]
[313891696,1707773447268,-500.0,0.00026447,2]
[313891697,1707773447277,-500.0,0.00026447,2]
[313891698,1707773447286,-500.0,0.00026447,2]
[313891699,1707773447295,-1011.45,0.00026447,2]
[313891700,1707773447305,-500.0,0.00026447,2]
[313891701,1707773447314,-500.0,0.00026447,2]
[313891702,1707773447323,-500.0,0.00026447,2]